[Event "15th Spice Cup 2021"]
[Site "Clayton"]
[Date "2021.10.21"]
[Round "7.3"]
[White "Nakada, Akira"]
[Black "Yoo, Christopher Woojin"]
[Result "0-1"]
[ECO "A28"]
[WhiteElo "2226"]
[BlackElo "2485"]
[Annotator "ChessBase"]
[PlyCount "76"]
[EventDate "2021.10.17"]
[EventType "swiss"]
[EventCountry "USA"]
[SourceTitle "playchess.com"]
[Source "ChessBase"]
[SourceQuality "1"]
[TimeControl "5400+30"]

1. c4 {[%emt 0:03:47]} e5 {[%emt 0:00:07]} 2. Nc3 {[%emt 0:00:05]} Bb4 {[%emt 0:00:06]} 3. Qc2 {[%emt 0:00:05]} Nf6 {[%emt 0:01:11]} 4. Nf3 {[%emt 0:00:12]} Nc6 {[%emt 0:06:53]} 5. e3 {[%emt 0:01:38]} O-O {[%emt 0:03:21]} 6. Nd5 {[%emt 0:00:20]} Be7 {[%emt 0:01:46]} 7. a3 {[%emt 0:00:31]} d6 {[%emt 0:05:43]} 8. Ng5 {[%emt 0:00:55]} g6 {[%emt 0:01:07]} 9. Nxe7+ {[%emt 0:00:06]} Qxe7 {[%emt 0:00:28]} 10. Bd3 {[%emt 0:06:35]} Nd7 {[%emt 0:08:52]} 11. Ne4 {[%emt 0:03:03]} f5 {[%emt 0:01:37]} 12. Nc3 {[%emt 0:00:49]} Nc5 {[%emt 0:06:39]} 13. Nd5 {[%emt 0:00:51]} Nxd3+ {[%emt 0:02:39]} 14. Qxd3 {[%emt 0:00:07]} Qf7 {[%emt 0:01:03]} 15. f4 {[%emt 0:15:43]} exf4 {[%emt 0:09:03]} 16. exf4 {[%emt 0:01:04]} Re8+ {[%emt 0:02:11]} 17. Kd1 {[%emt 0:00:06]} Be6 {[%emt 0:02:01]} 18. b3 {[%emt 0:03:12]} Bxd5 {[%emt 0:01:00]} 19. cxd5 {[%emt 0:00:40]} Ne7 {[%emt 0:00:21]} 20. Bb2 {[%emt 0:00:39]} Nxd5 {[%emt 0:00:28]} 21. Qd4 {[%emt 0:00:17]} Kf8 {[%emt 0:00:11]} 22. b4 {[%emt 0:11:10]} Re4 {[%emt 0:03:53]} 23. Qh8+ {[%emt 0:00:10]} Qg8 {[%emt 0:00:08]} 24. Qxg8+ {[%emt 0:00:09]} Kxg8 {[%emt 0:00:03]} 25. g3 {[%emt 0:00:08]} a5 {[%emt 0:05:15]} 26. b5 {[%emt 0:01:52]} a4 {[%emt 0:01:05]} 27. d3 {[%emt 0:00:07]} Re3 {[%emt 0:04:28]} 28. Kd2 {[%emt 0:00:07]} Rae8 {[%emt 0:00:06]} 29. Rhe1 {[%emt 0:00:06]} Rxe1 {[%emt 0:00:12]} 30. Rxe1 {[%emt 0:00:06]} Rxe1 {[%emt 0:00:11]} 31. Kxe1 {[%emt 0:00:04]} Kf7 {[%emt 0:00:28]} 32. Kd2 {[%emt 0:00:40]} Ke6 {[%emt 0:00:48]} 33. Bd4 {[%emt 0:00:08]} c6 {[%emt 0:03:21]} 34. bxc6 {[%emt 0:00:30]} bxc6 {[%emt 0:00:05]} 35. Bf2 {[%emt 0:01:15]} c5 {[%emt 0:00:45]} 36. Kc2 {[%emt 0:02:50]} Nc7 {[%emt 0:03:33]} 37. Be3 {[%emt 0:00:06]} Nb5 {[%emt 0:00:09]} 38. Bc1 {[%emt 0:00:05]} Kd5 {[%emt 0:01:46]} 0-1

[Event "15th Spice Cup 2021"]
[Site "Clayton"]
[Date "2021.10.21"]
[Round "7.6"]
[White "Moradiabadi, Elshan"]
[Black "Proleiko, Julian"]
[Result "1-0"]
[ECO "D37"]
[WhiteElo "2553"]
[BlackElo "2180"]
[Annotator "ChessBase"]
[PlyCount "73"]
[EventDate "2021.10.17"]
[EventType "swiss"]
[EventCountry "USA"]
[SourceTitle "playchess.com"]
[Source "ChessBase"]
[SourceQuality "1"]
[TimeControl "5400+30"]

1. d4 {[%emt 0:05:11]} Nf6 {[%emt 0:00:06]} 2. Nf3 {[%emt 0:00:02]} d5 {[%emt 0:00:08]} 3. c4 {[%emt 0:00:18]} e6 {[%emt 0:00:06]} 4. Nc3 {[%emt 0:01:45]} Be7 {[%emt 0:00:07]} 5. Bf4 {[%emt 0:00:12]} O-O {[%emt 0:00:06]} 6. a3 {[%emt 0:00:09]} Nbd7 {[%emt 0:05:07]} 7. Nb5 {[%emt 0:00:46]} Ne8 {[%emt 0:00:32]} 8. e3 {[%emt 0:00:05]} dxc4 {[%emt 0:03:27]} 9. Bxc4 {[%emt 0:00:14]} Nd6 {[%emt 0:00:12]} 10. Rc1 {[%emt 0:04:03]} a6 {[%emt 0:01:45]} 11. Nxd6 {[%emt 0:00:04]} Bxd6 {[%emt 0:01:21]} 12. Bg5 {[%emt 0:00:34]} Be7 {[%emt 0:00:09]} 13. Bxe7 {[%emt 0:00:21]} Qxe7 {[%emt 0:00:01]} 14. Bd3 {[%emt 0:00:05]} c6 {[%emt 0:00:14]} 15. Qc2 {[%emt 0:11:39]} h6 {[%emt 0:00:59]} 16. O-O {[%emt 0:02:15]} Re8 {[%emt 0:02:28]} 17. Rfe1 {[%emt 0:03:57]} e5 {[%emt 0:00:29]} 18. Bh7+ {[%emt 0:00:28]} Kh8 {[%emt 0:00:29]} 19. Be4 {[%emt 0:00:04]} exd4 {[%emt 0:01:16]} 20. exd4 {[%emt 0:00:09]} Qf8 {[%emt 0:00:19]} 21. d5 {[%emt 0:09:49]} c5 {[%emt 0:00:50]} 22. Nd2 {[%emt 0:03:47]} b5 {[%emt 0:04:05]} 23. h3 {[%emt 0:11:34]} Qd6 {[%emt 0:02:03]} 24. Bf3 {[%emt 0:00:56]} Rxe1+ {[%emt 0:00:24]} 25. Rxe1 {[%emt 0:00:01]} Nf6 {[%emt 0:00:13]} 26. Ne4 {[%emt 0:00:47]} Nxe4 {[%emt 0:01:52]} 27. Qxe4 {[%emt 0:00:10]} Bd7 {[%emt 0:01:34]} 28. Qe7 {[%emt 0:00:02]} Qxe7 {[%emt 0:00:11]} 29. Rxe7 {[%emt 0:00:03]} Be8 {[%emt 0:00:07]} 30. Rc7 {[%emt 0:01:51]} c4 {[%emt 0:00:06]} 31. Kf1 {[%emt 0:00:01]} Kg8 {[%emt 0:00:24]} 32. Ke2 {[%emt 0:00:02]} Rd8 {[%emt 0:01:26]} 33. Ke3 {[%emt 0:00:11]} Rd7 {[%emt 0:02:20]} 34. Rc8 {[%emt 0:05:53]} Kf8 {[%emt 0:01:12]} 35. Kd4 {[%emt 0:00:03]} Ke7 {[%emt 0:02:00]} 36. Kc5 {[%emt 0:00:07]} f5 {[%emt 0:01:23]} 37. d6+ {[%emt 0:00:12]} 1-0